bitfinex/quotes_BTCUSD_20250403
["timestamp","ask_amount","ask_price","bid_price","bid_amount"]
[1743690229346,0.244188,81904.0,81903.0,0.00013855]
[1743690229592,0.516397,81904.0,81903.0,0.00013855]
[1743690229836,0.26,81904.0,81903.0,0.00013855]
[1743690230336,0.504188,81904.0,81903.0,0.00013855]
[1743690230623,0.26,81904.0,81903.0,0.00013855]
[1743690231398,0.26,81904.0,81903.0,0.24432955]
[1743690231875,0.272209,81904.0,81903.0,0.00013855]
[1743690232116,0.26,81904.0,81903.0,0.00013855]
[1743690233327,0.26,81904.0,81903.0,0.00017855]
[1743690234092,0.26,81904.0,81903.0,0.46914315]
[1743690235315,0.04491154,81904.0,81903.0,0.46914315]
[1743690235561,0.0041681,81929.0,81920.0,0.244139]
[1743690235834,0.0041681,81929.0,81919.0,0.012207]
[1743690235835,0.244126,81925.0,81921.0,0.256343]
[1743690236087,0.374126,81925.0,81921.0,0.256343]
[1743690236332,0.24413,81924.0,81920.0,0.244139]
[1743690236565,0.30413,81924.0,81921.0,0.244136]
[1743690236800,0.244143,81919.0,81917.0,0.1694]
[1743690237083,0.05,81919.0,81912.0,0.34]
[1743690237354,0.244167,81911.0,81904.0,0.34]
[1743690237596,0.244177,81908.0,81904.0,0.34]
[1743690237828,0.244185,81905.0,81904.0,0.34]
[1743690238058,0.05,81905.0,81904.0,0.584188]
[1743690238487,0.05,81905.0,81903.0,0.58436855]
[1743690238682,0.05,81905.0,81903.0,0.34017855]
[1743690238945,0.244188,81904.0,81903.0,0.34017855]
[1743690239152,0.294188,81904.0,81903.0,0.00017855]
[1743690239636,1.4778326,81904.0,81903.0,5.5e-07]
[1743690239858,1.4897976,81904.0,81903.0,5.5e-07]
[1743690240111,0.256462,81883.0,81882.0,0.0038151]
[1743690240366,0.0961449,81863.0,81862.0,0.012215]
[1743690240573,0.0961449,81863.0,81862.0,0.37374563]
[1743690240790,0.0961449,81863.0,81862.0,0.71374563]
[1743690241251,0.0961449,81863.0,81862.0,0.38535754]
[1743690241467,0.0961449,81863.0,81862.0,0.55467754]
[1743690241702,0.0961449,81863.0,81862.0,0.89467754]
[1743690242418,0.0961449,81863.0,81862.0,0.89501394]
[1743690242664,0.0961449,81863.0,81862.0,0.89505394]
[1743690243100,0.0961449,81863.0,81862.0,0.62691403]
[1743690243325,0.1061449,81863.0,81862.0,0.87122703]
[1743690243575,0.1061449,81863.0,81862.0,0.88344203]
[1743690243819,0.1061449,81863.0,81862.0,0.62691403]
[1743690244257,0.1061449,81863.0,81862.0,0.28691403]
[1743690245480,0.1061449,81863.0,81862.0,0.53122703]
[1743690245741,0.0961449,81863.0,81862.0,0.88344203]
[1743690246009,1.066645,81904.0,81888.0,0.256447]
[1743690246010,0.011965,81904.0,81888.0,0.256447]
[1743690246233,0.0101682,81889.0,81888.0,0.8825226]
[1743690246477,0.0001682,81889.0,81888.0,0.8825226]
[1743690246963,0.0001682,81889.0,81888.0,0.89706345]
[1743690247202,0.036621,81922.0,81921.0,0.256343]
[1743690247442,0.02,81922.0,81921.0,0.5424186]
[1743690247723,0.02,81922.0,81921.0,0.8824186]
[1743690248013,0.10815807,81939.0,81928.0,0.596321]
[1743690248259,1e-07,81929.0,81928.0,0.72761745]
[1743690248506,0.00013855,81929.0,81928.0,0.72761745]
[1743690248747,0.10815807,81939.0,81938.0,0.59629]
[1743690249004,0.01252101,81939.0,81938.0,0.89686645]
[1743690249258,0.01252101,81939.0,81938.0,0.90879756]
[1743690250015,0.01252101,81939.0,81938.0,0.8823256]
[1743690250280,0.02252101,81939.0,81938.0,0.8823256]
[1743690251191,0.01252101,81939.0,81938.0,0.8823256]
[1743690251644,0.248025,81959.0,81953.0,0.256243]
[1743690251837,0.248025,81959.0,81944.0,0.012203]
[1743690251838,0.17413848,81959.0,81943.0,0.012203]
[1743690252010,0.244051,81951.0,81946.0,0.244062]
[1743690252215,0.11,81951.0,81944.0,0.1167556]
[1743690252427,0.11,81951.0,81950.0,0.244051]
[1743690252598,0.012202,81949.0,81936.0,0.34]
[1743690252808,0.012202,81949.0,81910.0,0.025]
[1743690252809,0.012203,81944.0,81935.0,0.34]
[1743690253011,0.012203,81944.0,81936.0,0.3608456]
[1743690253012,0.24408,81941.0,81936.0,0.3608456]
[1743690253220,0.244088,81938.0,81936.0,0.1167556]
[1743690253436,0.06,81938.0,81920.0,0.16924]
[1743690253675,0.244148,81918.0,81916.0,0.16924]
[1743690253886,0.03,81918.0,81913.0,0.012208]
[1743690254116,0.03,81918.0,81917.0,0.012207]
[1743690254297,0.03,81918.0,81916.0,0.24415]
[1743690254507,0.03,81918.0,81917.0,0.012207]
[1743690254722,0.03,81918.0,81916.0,0.244152]
[1743690254939,0.03,81918.0,81914.0,0.244157]
[1743690255143,0.03,81918.0,81915.0,0.3731156]
[1743690255380,0.03,81918.0,81917.0,0.012207]
[1743690255581,0.03,81918.0,81917.0,0.1289626]
[1743690256012,0.03,81918.0,81917.0,0.1167556]
[1743690256440,0.244155,81915.0,81914.0,0.00013845]
[1743690256654,0.516362,81915.0,81914.0,0.00013845]
[1743690257095,0.552986,81915.0,81914.0,0.00013845]
[1743690257326,0.24425,81883.0,81882.0,0.10872314]
[1743690257554,0.28425,81883.0,81882.0,0.10872314]
[1743690257764,0.244254,81882.0,81877.0,0.244266]
[1743690258001,0.244264,81879.0,81874.0,0.244275]
[1743690258246,0.264264,81879.0,81875.0,0.1167556]
[1743690258460,0.264264,81879.0,81875.0,0.3610286]
[1743690258683,0.02,81879.0,81876.0,0.012213]
[1743690258897,0.02,81879.0,81878.0,0.352213]
[1743690259118,0.244217,81895.0,81890.0,0.244229]
[1743690259527,0.244271,81877.0,81867.0,0.256512]
[1743690259758,0.04,81877.0,81874.0,0.244276]
[1743690260006,0.04,81877.0,81876.0,0.4567556]
[1743690260438,0.04,81877.0,81876.0,0.4689686]
[1743690261371,0.284268,81877.0,81876.0,0.1167556]
[1743690261603,0.284268,81877.0,81876.0,0.1289686]
[1743690261604,0.04,81877.0,81876.0,0.1289686]
[1743690262286,0.04,81877.0,81876.0,0.47141107]
[1743690262514,0.04,81877.0,81876.0,0.4689686]
[1743690263243,0.04,81877.0,81876.0,0.6259156]
[1743690263488,0.04,81877.0,81876.0,0.6381286]
[1743690263960,0.284268,81877.0,81876.0,0.1167556]
[1743690264187,0.284268,81877.0,81876.0,0.1289686]
[1743690264188,0.04,81877.0,81876.0,0.1289686]
[1743690266072,0.04,81877.0,81876.0,0.13141107]
[1743690266322,0.04,81877.0,81876.0,0.13174727]
[1743690266564,0.04,81877.0,81876.0,0.1293048]
[1743690267265,0.04,81877.0,81876.0,0.13174725]
[1743690267495,0.04,81877.0,81876.0,0.1293048]
[1743690268206,0.04,81877.0,81876.0,0.0003362]
[1743690268966,0.284268,81877.0,81876.0,0.0003362]
[1743690269458,0.04,81877.0,81876.0,0.2446072]
[1743690269912,0.04,81877.0,81876.0,0.2568202]
[1743690270875,0.04,81877.0,81876.0,0.3736158]
[1743690272392,0.04,81877.0,81876.0,0.0003762]
[1743690272393,0.284268,81877.0,81876.0,0.0003762]
[1743690272644,0.04,81877.0,81876.0,0.0003762]
[1743690272908,0.04,81877.0,81876.0,0.3736158]
[1743690273151,0.04,81877.0,81876.0,0.3614028]
[1743690273413,0.04,81877.0,81876.0,0.3736158]
[1743690275003,0.04,81877.0,81876.0,0.7136158]
[1743690275441,0.04,81877.0,81876.0,0.8827358]
[1743690276845,0.04,81877.0,81876.0,0.87831755]
[1743690278084,0.244221,81893.0,81890.0,0.244227]
[1743690278333,0.05,81893.0,81892.0,0.256435]
[1743690278547,0.05,81893.0,81891.0,0.1167556]
[1743690278792,0.05,81893.0,81879.0,0.012213]
[1743690279054,0.244245,81885.0,81882.0,0.1167556]
[1743690279321,0.03,81885.0,81884.0,0.256459]
[1743690279564,0.03,81885.0,81884.0,0.3732146]
[1743690279801,0.03,81885.0,81881.0,0.012212]
[1743690280081,0.03,81885.0,81884.0,0.244247]
[1743690280299,0.274245,81885.0,81882.0,0.244253]
[1743690280786,0.244268,81877.0,81876.0,0.0003362]
[1743690281040,0.484268,81877.0,81876.0,0.0003362]
[1743690281739,0.252213,81877.0,81864.0,0.244305]
[1743690281993,0.012214,81871.0,81862.0,0.0003764]
[1743690282236,0.256525,81863.0,81862.0,0.0003764]
[1743690282487,0.516525,81863.0,81862.0,0.0003764]
[1743690282976,0.563125,81863.0,81862.0,0.0003764]
[1743690284623,0.563125,81863.0,81862.0,0.0004164]
[1743690284852,0.6798806,81863.0,81862.0,0.0004164]
[1743690285093,0.6798806,81863.0,81844.0,0.0003362]
[1743690285094,0.256569,81849.0,81844.0,0.0003362]
[1743690285301,0.526569,81849.0,81844.0,0.0003362]
[1743690286229,0.526569,81849.0,81848.0,0.00030642]
[1743690287634,0.514352,81849.0,81848.0,0.00030642]
[1743690287866,0.526569,81849.0,81848.0,0.00030642]
[1743690288141,0.27,81849.0,81848.0,0.00030642]
[1743690288593,0.282217,81849.0,81848.0,0.00030642]
[1743690290318,0.282217,81849.0,81848.0,0.00034642]
[1743690290528,0.27,81849.0,81848.0,0.00034642]
[1743690291385,0.27,81849.0,81848.0,0.25691842]
[1743690291594,0.27,81849.0,81848.0,0.37367402]
[1743690292059,0.27,81849.0,81848.0,0.71367402]
[1743690292285,0.012213,81879.0,81867.0,0.25651]
[1743690292286,0.244273,81876.0,81867.0,0.25651]
[1743690292523,0.1852,81901.0,81884.0,0.012212]
[1743690292740,0.1852,81901.0,81869.0,0.34]
[1743690292741,0.17,81898.0,81894.0,0.01221]
[1743690292957,0.17,81898.0,81896.0,0.256419]
[1743690293171,0.17,81898.0,81891.0,0.181291]
[1743690293172,0.01221,81894.0,81879.0,0.012213]
[1743690293386,0.012212,81884.0,81876.0,0.16908]
[1743690293606,0.012215,81865.0,81855.0,0.012216]
[1743690293828,0.04046109,81865.0,81861.0,0.012215]
[1743690294058,0.04046109,81865.0,81863.0,0.256524]
[1743690294251,0.04046109,81865.0,81863.0,0.3732796]
[1743690295087,0.04046109,81865.0,81864.0,0.012215]
[1743690295921,0.04046109,81865.0,81864.0,0.47141354]
[1743690296127,0.04046109,81865.0,81864.0,0.4689706]
[1743690298299,0.04046109,81865.0,81864.0,0.48351145]
[1743690298518,0.00046109,81865.0,81864.0,0.48355145]
[1743690299143,0.00046109,81865.0,81864.0,0.4690106]
[1743690299557,0.01046109,81865.0,81864.0,0.6380106]
[1743690300683,0.01046109,81865.0,81864.0,0.16904]
[1743690300910,0.01046109,81865.0,81864.0,0.181255]
[1743690301117,0.01046109,81865.0,81864.0,0.2980106]
[1743690301557,0.01046109,81865.0,81864.0,0.6380106]
[1743690301771,0.00046109,81865.0,81864.0,0.6380106]
[1743690301964,0.02046109,81865.0,81864.0,0.6257956]
[1743690302228,0.02046109,81865.0,81864.0,0.6380106]
[1743690302437,0.00046109,81865.0,81864.0,0.6380106]
[1743690302652,9e-08,81865.0,81864.0,0.65255145]
[1743690302882,9e-08,81865.0,81864.0,0.89685845]
[1743690303165,9e-08,81865.0,81864.0,0.8823176]
[1743690303536,0.00016829,81865.0,81864.0,0.8823176]
[1743690303763,0.01016829,81865.0,81864.0,0.8823176]
[1743690304201,0.00016829,81865.0,81864.0,0.8823176]
[1743690304431,2.9e-07,81865.0,81864.0,0.8823176]
[1743690304681,0.244175,81909.0,81901.0,0.012209]
[1743690304893,0.05,81909.0,81899.0,0.01221]
[1743690305130,0.05,81909.0,81904.0,0.012209]
[1743690305374,0.05,81909.0,81908.0,0.596384]
[1743690305588,0.256384,81908.0,81907.0,0.16892]
[1743690305840,0.012209,81905.0,81889.0,0.012211]
[1743690306061,0.244196,81902.0,81898.0,0.244205]
[1743690306279,0.07,81902.0,81896.0,0.01221]
[1743690306496,0.244201,81900.0,81897.0,0.244208]
[1743690306706,0.05,81900.0,81899.0,0.256413]
[1743690307409,0.00030647,81914.0,81913.0,0.256369]
[1743690307614,0.03030647,81914.0,81913.0,0.256369]
[1743690308079,0.03030647,81914.0,81913.0,0.3731246]
[1743690308713,0.244164,81912.0,81911.0,0.34]
[1743690308926,0.244203,81899.0,81898.0,0.34004]
[1743690309141,0.02,81899.0,81898.0,0.584246]
[1743690309354,0.02,81899.0,81898.0,0.34004]
[1743690309608,0.02,81899.0,81898.0,0.584246]
[1743690309817,0.02,81899.0,81898.0,0.596456]
[1743690310040,0.276413,81899.0,81898.0,4e-05]
[1743690310270,0.264203,81899.0,81898.0,4e-05]
[1743690310937,0.276413,81899.0,81898.0,4e-05]
[1743690311145,0.8377305,81899.0,81898.0,4e-05]
[1743690311389,0.01454085,81893.0,81869.0,0.012214]
[1743690311628,0.244206,81898.0,81885.0,0.012212]
[1743690311863,0.244265,81879.0,81877.0,0.16884]
[1743690312099,0.02,81879.0,81870.0,0.012214]
[1743690312320,0.012212,81886.0,81867.0,0.34]
[1743690312560,0.012212,81886.0,81866.0,0.012215]
[1743690312561,0.244301,81866.0,81865.0,0.16884]
[1743690312779,0.03,81866.0,81865.0,0.413144]
[1743690313047,0.03,81866.0,81865.0,0.16884]
[1743690313308,0.03,81866.0,81865.0,0.2978106]
[1743690313946,0.03,81866.0,81865.0,0.6378506]
[1743690314172,0.244206,81898.0,81883.0,0.012212]
[1743690314389,0.15013835,81898.0,81886.0,0.244241]
[1743690314602,0.15013835,81898.0,81896.0,0.244209]
[1743690314820,0.15013835,81898.0,81897.0,0.1289656]
[1743690315042,0.00013835,81898.0,81897.0,0.48350645]
[1743690315269,0.004,81929.0,81913.0,0.596369]
[1743690315496,0.004,81929.0,81913.0,0.8819646]
[1743690316157,0.004,81929.0,81913.0,0.89382266]
[1743690316401,0.036612,81954.0,81946.0,0.596266]
[1743690316402,4e-07,81947.0,81946.0,0.596266]
[1743690316647,0.10692181,81970.0,81958.0,0.596228]
[1743690316648,5e-07,81959.0,81958.0,0.596228]
[1743690316895,0.00046236,81959.0,81958.0,0.72752445]
[1743690317153,0.0001684,81971.0,81970.0,0.36673985]
[1743690317154,5.7e-07,81971.0,81970.0,0.36673985]
[1743690317398,9.7e-07,81989.0,81988.0,0.61067485]
[1743690317643,9.7e-07,81989.0,81988.0,0.8816896]
[1743690317908,0.02686388,82029.0,82018.0,0.25604]
[1743690318148,0.174,82019.0,82012.0,0.012193]
[1743690318401,0.17413865,82019.0,82018.0,0.59604]
[1743690318649,0.08000065,82019.0,82018.0,0.72733645]
[1743690318886,0.02686388,82029.0,82028.0,0.256009]
[1743690319142,0.03686388,82029.0,82028.0,0.7127646]
[1743690319388,0.004,82049.0,82041.0,0.012189]
[1743690319626,0.012189,82040.0,82023.0,0.012191]
[1743690319851,0.24383,82025.0,82023.0,0.1167556]
[1743690320075,0.02,82025.0,82023.0,0.1167556]
[1743690320288,0.243831,82024.0,82023.0,0.1167556]
[1743690320536,0.243831,82024.0,82019.0,0.16876]
[1743690320537,0.243842,82020.0,82019.0,0.16876]
[1743690320734,0.243842,82020.0,81995.0,0.01175824]
[1743690320735,0.01,82020.0,82016.0,0.34]
[1743690321009,0.01,82020.0,82017.0,0.1167556]
[1743690321457,0.01,82020.0,82015.0,0.16864]
[1743690321458,0.243848,82018.0,82015.0,0.16864]
[1743690321697,0.03,82018.0,82015.0,0.2853956]
[1743690321860,0.03,82018.0,82017.0,0.256043]
[1743690322163,0.423381,82070.0,82038.0,0.012189]
[1743690322372,0.16864,82075.0,82038.0,0.012189]
[1743690322373,0.2442262,82046.0,82039.0,0.3727306]
[1743690322589,0.243771,82044.0,82039.0,0.1167556]
[1743690322793,0.07,82044.0,82040.0,0.012189]
[1743690322986,0.07,82044.0,82041.0,0.1167556]
[1743690323412,0.243774,82043.0,82041.0,0.1167556]
[1743690323660,0.04,82043.0,82041.0,0.1167556]
[1743690323886,0.283775,82043.0,82041.0,0.1167556]
[1743690324109,0.04,82043.0,82041.0,0.1167556]
[1743690324570,0.04,82043.0,82042.0,0.59840244]
[1743690324987,0.04,82043.0,82042.0,0.8812806]
[1743690324989,0.0004612,82046.0,82045.0,0.595956]
[1743690325204,0.0204612,82046.0,82045.0,0.7127116]
[1743690325471,2e-07,82049.0,82045.0,0.72725245]
[1743690325700,0.0301684,82071.0,82042.0,0.424525]
[1743690325701,0.0001684,82071.0,82070.0,0.595878]
[1743690325952,0.0101684,82071.0,82070.0,0.8811936]
[1743690326213,0.01030676,82071.0,82070.0,0.8811936]
[1743690326930,0.00030676,82071.0,82070.0,0.89573445]
[1743690327615,7.6e-07,82071.0,82070.0,0.90748852]
[1743690328066,0.004,82079.0,82078.0,0.595853]
[1743690328302,0.004,82079.0,82078.0,0.7126086]
[1743690328537,0.00100069,82100.0,82096.0,0.255795]
[1743690328820,0.09113894,82100.0,82098.0,0.255791]
[1743690329051,0.09113894,82100.0,82099.0,0.1289356]
[1743690330468,0.09113894,82100.0,82099.0,0.4859122]
[1743690330699,0.09113894,82100.0,82099.0,0.4689356]
[1743690331421,0.09113894,82100.0,82099.0,0.48347645]
[1743690331661,0.09113894,82100.0,82099.0,0.4689356]
[1743690332638,0.09113894,82100.0,82099.0,0.48347645]
[1743690332863,0.00113894,82100.0,82099.0,0.48347645]
[1743690333312,0.00113894,82100.0,82099.0,0.49563694]
[1743690334483,0.00113894,82100.0,82099.0,0.48109609]
[1743690334707,0.00113894,82100.0,82099.0,0.64945609]
[1743690334952,0.00113894,82100.0,82099.0,0.88088409]
[1743690335181,0.01113894,82100.0,82099.0,0.89306409]
[1743690335834,0.01113894,82100.0,82099.0,0.90760494]
[1743690335835,0.00113894,82100.0,82099.0,0.90760494]
[1743690336272,9.4e-07,82100.0,82099.0,0.73924494]
[1743690336494,1.4e-07,82109.0,82108.0,0.27030085]
[1743690336718,1.4e-07,82109.0,82108.0,0.38467609]
[1743690337577,0.01000014,82109.0,82108.0,0.72467609]
[1743690337789,0.01000014,82109.0,82108.0,0.46891609]
[1743690338012,0.01000014,82109.0,82108.0,0.48109509]
[1743690338233,0.25357814,82109.0,82108.0,0.12891609]
[1743690338444,0.01000014,82109.0,82108.0,0.14109509]
[1743690339557,0.01000014,82109.0,82108.0,0.1435308]
[1743690339764,0.01000014,82109.0,82108.0,0.4835308]
[1743690339974,0.01000014,82109.0,82108.0,0.48109509]
[1743690340679,0.00516784,82109.0,82108.0,0.48109509]
[1743690340898,0.00516784,82109.0,82108.0,0.46891609]
[1743690341327,0.00516784,82109.0,82108.0,0.48109509]
[1743690341584,0.00516784,82109.0,82108.0,0.12891609]
[1743690341795,0.00516784,82109.0,82108.0,0.14109509]
[1743690342479,0.00516784,82109.0,82108.0,0.12891609]
[1743690342699,0.00516784,82109.0,82108.0,0.14109509]
[1743690343152,0.00516784,82109.0,82108.0,0.01216049]
[1743690343388,0.26092384,82109.0,82108.0,0.01216049]
[1743690344130,0.24874584,82109.0,82108.0,0.01216049]
[1743690344366,0.00516784,82109.0,82108.0,0.01216049]
[1743690344602,0.00516784,82109.0,82108.0,0.37249709]
[1743690344837,0.00516784,82109.0,82108.0,0.38467609]
[1743690345067,0.24874584,82109.0,82108.0,0.01216049]
[1743690345303,0.00516784,82109.0,82108.0,0.02433949]
[1743690345538,0.00516784,82109.0,82108.0,0.01216049]
[1743690345762,0.00516784,82109.0,82108.0,0.02433949]
[1743690346704,0.00516784,82109.0,82108.0,0.14109509]
[1743690347412,8e-05,82127.0,82126.0,0.012176]
[1743690347643,0.24021823,82127.0,82126.0,0.01216049]
[1743690348358,0.15021823,82127.0,82126.0,0.14109209]
[1743690349103,0.15021823,82127.0,82126.0,0.01216049]
[1743690349357,0.15021823,82127.0,82126.0,0.25568849]
[1743690349628,0.39374323,82127.0,82126.0,0.01216049]
[1743690350103,0.15021823,82127.0,82126.0,0.02433649]
[1743690350341,0.15021823,82127.0,82126.0,0.38462009]
[1743690350563,0.15011735,82127.0,82126.0,0.38462009]
[1743690351446,0.15011735,82127.0,82126.0,0.12891609]
[1743690351654,0.39364235,82127.0,82126.0,0.01216049]
[1743690351914,0.15011735,82127.0,82126.0,0.01216049]
[1743690352396,0.39364235,82127.0,82126.0,0.01216049]
[1743690352634,0.15028505,82127.0,82126.0,0.01216049]
[1743690353084,0.15028505,82127.0,82126.0,0.25568849]
[1743690353305,0.15028505,82127.0,82126.0,0.38462009]
[1743690353521,0.15028505,82127.0,82126.0,0.25568849]
[1743690353745,0.15028505,82127.0,82126.0,0.01216049]
[1743690353967,0.39381005,82127.0,82126.0,0.01216049]
[1743690354716,0.40598605,82127.0,82126.0,0.01216049]
[1743690355180,0.39381005,82127.0,82126.0,0.01216049]
[1743690355849,0.15028505,82127.0,82126.0,0.01216049]
[1743690356045,0.15028505,82127.0,82126.0,0.26786449]
[1743690356341,0.15028505,82127.0,82126.0,0.38462009]
[1743690356567,0.15028505,82127.0,82126.0,0.12891609]
[1743690356811,0.15028505,82127.0,82126.0,0.38462009]
[1743690357055,0.15028505,82127.0,82126.0,0.72462009]
[1743690357275,0.15028505,82127.0,82126.0,0.76237089]
[1743690357969,0.00030593,82127.0,82126.0,0.76237089]
[1743690358443,0.01030593,82127.0,82126.0,0.76237089]
[1743690358914,0.01030593,82127.0,82126.0,0.77691174]
[1743690359142,0.0001682,82129.0,82128.0,0.595698]
[1743690359143,1.3e-07,82129.0,82128.0,0.595698]
[1743690359415,0.0263,82139.0,82138.0,0.61020685]
[1743690359416,1.3e-07,82139.0,82138.0,0.61020685]
[1743690359648,0.004,82169.0,82158.0,0.255604]
[1743690359863,0.07046066,82159.0,82158.0,0.59039089]
[1743690360528,0.07046066,82159.0,82158.0,0.59419419]
[1743690360753,0.07046066,82159.0,82158.0,0.60180083]
[1743690360982,6.6e-07,82159.0,82158.0,1.05384168]
[1743690361207,6.6e-07,82159.0,82158.0,1.05884168]
[1743690361442,0.0001682,82183.0,82182.0,0.25553]
[1743690361673,0.32,82208.0,82207.0,0.012164]
[1743690361935,0.243214,82232.0,82209.0,0.012164]
[1743690362159,0.25030627,82210.0,82209.0,0.72674245]
[1743690362613,0.25030627,82210.0,82209.0,0.7644281]
[1743690362840,0.00030627,82210.0,82209.0,0.9325081]
[1743690363070,0.00030627,82210.0,82209.0,0.72674245]
[1743690363323,0.01216,82234.0,82215.0,0.012163]
[1743690363546,0.243229,82227.0,82221.0,0.012162]
[1743690363771,0.483229,82227.0,82222.0,0.1289176]
[1743690364008,0.24324,82223.0,82221.0,0.01216049]
[1743690364229,0.13,82223.0,82221.0,0.01216049]
[1743690364452,0.13,82223.0,82222.0,0.3599986]
[1743690364685,0.37324,82223.0,82222.0,0.1167556]
[1743690364946,0.13,82223.0,82222.0,0.1167556]
[1743690365691,0.13,82223.0,82222.0,0.1289176]
[1743690366175,0.13,82223.0,82222.0,0.1167556]
[1743690366421,0.243243,82222.0,82221.0,0.01216049]
[1743690366662,0.373243,82222.0,82221.0,0.01216049]
[1743690367166,0.385405,82222.0,82221.0,0.01216049]
[1743690367419,0.373243,82222.0,82221.0,0.01216049]
[1743690367671,0.385405,82222.0,82221.0,0.01216049]
[1743690368391,0.03,82189.0,82188.0,0.352167]
[1743690368622,0.03,82189.0,82188.0,0.4567556]
[1743690368854,0.03,82189.0,82188.0,0.1289226]
[1743690369594,0.03,82189.0,82188.0,0.14589662]
[1743690369812,0.03,82189.0,82188.0,0.2968826]
[1743690370277,0.03,82189.0,82188.0,0.2847156]
[1743690370525,0.03,82189.0,82188.0,0.2968826]
[1743690370754,0.02989919,82189.0,82188.0,0.2968826]
[1743690371719,0.02989919,82189.0,82188.0,0.6368826]
[1743690371951,0.42147577,82240.0,82188.0,0.6368826]
[1743690371952,0.012161,82227.0,82211.0,0.243274]
[1743690372211,0.243259,82217.0,82213.0,0.012163]
[1743690372449,0.05,82217.0,82213.0,0.1167556]
[1743690372646,0.05,82217.0,82214.0,0.1167556]
[1743690372928,0.243267,82214.0,82213.0,0.1167556]
[1743690373135,0.283267,82214.0,82213.0,0.1167556]
[1743690373429,0.243273,82212.0,82211.0,0.16792]
[1743690373667,0.243273,82212.0,82196.0,0.012166]
[1743690373668,0.23,82212.0,82196.0,0.012166]
[1743690373898,0.473276,82212.0,82200.0,0.243309]
[1743690374138,0.23,82212.0,82201.0,0.1167556]
[1743690374368,0.473276,82212.0,82200.0,0.1167556]
[1743690374600,0.243293,82206.0,82200.0,0.1167556]
[1743690374834,0.03,82206.0,82205.0,0.243291]
[1743690375067,0.273292,82206.0,82205.0,0.1167556]
[1743690375303,0.243314,82199.0,82194.0,0.243326]
[1743690375560,0.01,82199.0,82198.0,0.1167556]
[1743690375786,0.01,82199.0,82175.0,0.012169]
[1743690375787,0.253311,82199.0,82175.0,0.012169]
[1743690376023,0.012165,82198.0,82173.0,0.012169]
[1743690376262,0.242165,82198.0,82177.0,0.012168]
[1743690376501,0.242165,82198.0,82178.0,0.243372]
[1743690376989,0.242165,82198.0,82174.0,0.243385]
[1743690377257,0.012167,82189.0,82171.0,0.004]
[1743690377493,0.485508,82189.0,82171.0,0.004]
[1743690377744,0.473301,82189.0,82171.0,0.004]
[1743690377976,0.22996,82189.0,82188.0,0.255551]
[1743690378193,0.22996,82189.0,82188.0,4e-05]
[1743690379365,0.242127,82189.0,82188.0,4e-05]
[1743690379593,0.22996,82189.0,82188.0,4e-05]
[1743690380098,0.22996,82189.0,82188.0,8e-05]
[1743690380334,0.22996,82189.0,82188.0,0.012247]
[1743690380583,0.22996,82189.0,82188.0,8e-05]
[1743690381525,0.242127,82189.0,82188.0,8e-05]
[1743690381987,0.02708828,82189.0,82188.0,8e-05]
[1743690382481,0.25826228,82189.0,82188.0,8e-05]
[1743690382715,0.27042928,82189.0,82188.0,8e-05]
[1743690383656,0.25826228,82189.0,82188.0,8e-05]
[1743690384119,0.27042928,82189.0,82188.0,8e-05]
[1743690384817,0.25826228,82189.0,82188.0,8e-05]
[1743690386320,0.01492128,82189.0,82188.0,8e-05]
[1743690386413,0.25826228,82189.0,82188.0,8e-05]
[1743690386884,0.27042928,82189.0,82188.0,8e-05]
[1743690387128,0.243394,82172.0,82168.0,0.243403]
[1743690387367,0.03,82172.0,82158.0,0.000335]
[1743690387602,0.243406,82167.0,82159.0,0.1167556]
[1743690387838,0.02,82167.0,82165.0,0.25558]
[1743690388074,0.02,82167.0,82166.0,0.243409]
[1743690388333,0.02013791,82167.0,82165.0,0.15558]
[1743690388574,0.02013791,82167.0,82166.0,0.255579]
[1743690389084,0.00013791,82167.0,82166.0,0.8802146]
[1743690389321,0.00013791,82167.0,82166.0,0.94065545]
[1743690389549,9.1e-07,82167.0,82166.0,0.98655545]
[1743690390026,0.004,82229.0,82211.0,0.243276]
[1743690390265,0.004,82229.0,82207.0,0.012164]
[1743690390266,0.0301675,82212.0,82209.0,0.243281]
[1743690390504,0.03030564,82212.0,82203.0,0.411178]
[1743690390734,0.243276,82211.0,82207.0,0.243286]
[1743690390969,0.243297,82204.0,82203.0,0.16788]
[1743690391200,0.273297,82204.0,82203.0,0.16788]
[1743690391447,0.03,82204.0,82203.0,0.16788]
[1743690391675,0.03,82204.0,82200.0,0.012165]
[1743690391902,0.2433,82203.0,82200.0,0.243306]
[1743690392086,0.2633,82203.0,82200.0,0.243306]
[1743690392269,0.243303,82202.0,82199.0,0.243311]
[1743690392540,0.02,82202.0,82201.0,0.012165]
[1743690392792,0.02,82202.0,82201.0,0.3722246]
[1743690392991,0.02,82202.0,82201.0,0.3722266]
[1743690393235,0.00030564,82212.0,82211.0,0.595439]
[1743690393369,0.00030564,82212.0,82211.0,0.8800746]
[1743690393576,0.00030564,82212.0,82211.0,0.7121946]
[1743690393775,0.00030564,82212.0,82211.0,0.8800746]
[1743690394850,0.00030564,82212.0,82211.0,0.88916236]
[1743690395055,0.00030564,82212.0,82211.0,0.90106752]
[1743690395254,0.00030564,82212.0,82211.0,0.63654076]
[1743690395467,0.01030564,82212.0,82196.0,0.24332]
[1743690395694,0.243288,82207.0,82203.0,0.243298]
[1743690395926,0.01,82207.0,82197.0,0.180045]
[1743690396146,0.01,82207.0,82198.0,0.1167556]
[1743690396379,0.01,82207.0,82197.0,0.16788]
[1743690396630,0.01,82207.0,82190.0,0.012166]
[1743690396631,0.022164,82207.0,82193.0,0.012166]
[1743690396838,0.243313,82199.0,82193.0,0.1289216]
[1743690397069,0.243332,82193.0,82189.0,0.243341]
[1743690397288,0.02,82193.0,82190.0,0.243338]
[1743690397736,0.02,82193.0,82188.0,0.000335]
[1743690398002,0.243338,82190.0,82188.0,0.000335]
[1743690398243,0.04,82215.0,82191.0,0.34]
[1743690398475,0.09030564,82212.0,82211.0,0.012163]
[1743690398695,0.09030564,82212.0,82211.0,0.4689186]